[Event "Frauenbundesliga 2024-25"]
[Site "Germany"]
[Date "2025.01.25"]
[Round "3.11"]
[White "Zhou, Lepu Coco"]
[Black "Rath, Alina"]
[Result "1-0"]
[Annotator "TA"]
[ECO "B30"]
[WhiteElo "2046"]
[BlackElo "2030"]
[PlyCount "57"]
[EventDate "2024.11.06"]
[EventType "team-tourn"]
[EventCountry "GER"]
[SourceTitle "playchess.com"]
[Source "ChessBase"]
[SourceQuality "1"]
[WhiteTeam "Hamburger SK"]
[BlackTeam "1871 Loeberitz"]
[TimeControl "40/5400+30:1800+30"]

{[%evp 9,57,47,46,44,50,12,12,16,61,0,67,62,72,-8,-7,-16,-12,-18,-2,-36,-16,-48,-29,-87,-65,-98,0,0,0,-8,0,0,0,0,0,0,20,-17,2,8,14,13,256,247,259,260,241,251,2071,2047]} 1. e4 {[%emt 0:00:04]} c5 {[%emt 0:00:05]} 2. Nf3 {[%emt 0:00:05]} Nc6 {[%emt 0:00:10]} 3. Bb5 {[%emt 0:00:21]} a6 {[%emt 0:00:07]} 4. Bxc6 {[%emt 0:02:29]} dxc6 {[%emt 0:00:07]} 5. d3 {[%emt 0:00:22]} Qc7 {[%emt 0:00:08]} 6. O-O {[%emt 0:00:24] B30: Sicilian: 2...Nc6 3 Bb5, lines without ...g6.} e5 {[%emt 0:00:06]} 7. Nc3 {[%emt 0:00:59]} Ne7 {[%emt 0:00:23]} 8. Be3 {[%emt 0:02:15] The position is equal.} Ng6 {[%emt 0:00:07]} 9. h3 {[%emt 0:00:47] White is more active.} (9. Na4 $14) 9... Be7 {[%emt 0:06:14]} (9... a5 $11) 10. Na4 $1 $14 {[%emt 0:03:22]} b6 {[%emt 0:01:58]} 11. a3 $146 {[%emt 0:02:17]} (11. b4 $16) (11. b4 cxb4 12. Nxb6 Rb8 13. Nxc8 Qxc8 14. Nd2 O-O 15. Nc4 f5 16. exf5 Qxf5 17. Qg4 {1-0 Guseinov,G (2646)-Tissir,M (2381) Wch Rapid Riadh 2017 (4)}) 11... Rb8 $11 {[%emt 0:02:44]} 12. Qd2 {[%emt 0:13:12]} a5 {[%emt 0:02:13]} 13. Nc3 {[%emt 0:02:43]} O-O {[%emt 0:00:18]} 14. Ne2 {[%emt 0:00:38]} f6 {[%emt 0:01:03]} 15. Nh2 {[%emt 0:13:06]} Bd6 {[%emt 0:02:17]} 16. f4 {[%emt 0:11:17]} (16. Nc3 $11) 16... exf4 {[%emt 0:00:24]} 17. Nxf4 {[%emt 0:00:43]} Nxf4 {[%emt 0:00:34]} ({Better is} 17... f5 $17 {and ...fxe4 would now be decisive} 18. g3 Nxf4 19. Bxf4 Bxf4 20. Rxf4 Be6) 18. Bxf4 {[%emt 0:04:10]} Be6 {[%emt 0:01:38]} 19. Rae1 {[%emt 0:01:39]} Rbd8 {[%emt 0:01:03]} 20. Bxd6 {[%emt 0:05:39]} Qxd6 {[%emt 0:00:10]} 21. Nf3 {[%emt 0:00:21][%cal Bh2f3,Bf3e5,Be5f7][%mdl 32] Prevents Qd4+.} a4 {[%emt 0:04:18]} 22. Qe3 {[%emt 0:01:35]} Rfe8 {[%emt 0:05:51]} 23. Kh1 {[%emt 0:04:19]} Bf7 {[%emt 0:04:23]} 24. e5 {[%emt 0:02:53]} fxe5 {[%emt 0:04:10]} (24... Qc7 {simplifies} 25. Qf2 fxe5 26. Nxe5 Bd5) 25. Nxe5 {[%emt 0:02:42][%cal Oe3f2] and Qf2! should not be overlooked} Rd7 $2 {[%emt 0:06:51] [#] This move loses the game for Black.} (25... Ba2 $11) 26. Qg5 $1 $18 {[%emt 0:08:06]} h6 {[%emt 0:13:36]} 27. Qf5 {[%emt 0:03:05]} Be6 {[%emt 0:04:44]} 28. Qg6 {[%emt 0:00:28]} Rdd8 {[%emt 0:02:43]} (28... Rde7 29. Rf7 (29. Nf7 Bxf7 30. Qxd6 Rxe1 $18) 29... Qxe5 30. Rf8+ (30. Rxe5 $2 {perishes.} Bxf7 31. Qxc6 Rxe5 $19) 30... Rxf8 31. Rxe5 Bf7) 29. Nf7 {[%emt 0:00:41] Weighted Error Value: White=0.17 (very precise) /Black=0.54  Loses game:     	---       	Black=1      Mistake:       	White=3     	Black=3      Inaccurate:     	White=5     	Black=1      OK:         	White=6     	Black=6      Best:        	White=1     	Black=1      Strong:       	White=2     	---} 1-0

[Event "Frauenbundesliga 2024-25"]
[Site "Germany"]
[Date "2025.01.25"]
[Round "3.11"]
[White "Stangl, Anita"]
[Black "Yurenok, Maria S"]
[Result "0-1"]
[Annotator "NA COMBH RC"]
[ECO "B08"]
[WhiteElo "2027"]
[BlackElo "1993"]
[PlyCount "120"]
[EventDate "2024.11.06"]
[EventType "team-tourn"]
[EventCountry "GER"]
[SourceTitle "playchess.com"]
[Source "ChessBase"]
[SourceQuality "1"]
[WhiteTeam "Bayern Muenchen"]
[BlackTeam "Rodewischer Schachmiezen"]
[TimeControl "40/5400+30:1800+30"]

1. e4 {[%emt 0:00:01]} d6 {[%emt 0:00:10]} 2. d4 {[%emt 0:00:09]} Nf6 {[%emt 0:00:05]} 3. Nc3 {[%emt 0:00:24]} g6 {[%emt 0:00:07]} 4. Nf3 {[%emt 0:00:25]} Bg7 {[%emt 0:00:24]} 5. h3 {[%emt 0:00:21]} O-O {[%emt 0:00:24]} 6. Be3 {[%emt 0:00:30]} a6 {[%emt 0:01:18]} 7. Qd2 {[%emt 0:03:06]} b5 {[%emt 0:01:33]} 8. Bd3 {[%emt 1:29:34]} Bb7 {[%emt 0:03:33]} 9. a3 {[%emt 0:15:32]} e5 {[%emt 0:09:19]} 10. dxe5 {[%emt 0:06:31]} dxe5 {[%emt 0:00:12]} 11. Bh6 {[%emt 0:14:51]} Nbd7 {[%emt 0:04:13]} 12. Bxg7 {[%emt 0:06:21]} Kxg7 {[%emt 0:00:06]} 13. Qg5 {[%emt 0:01:36]} c5 {[%emt 0:21:09]} 14. Nxe5 {[%emt 0:06:04]} Nxe5 {[%emt 0:02:12]} 15. Qxe5 {[%emt 0:00:37]} c4 {[%emt 0:01:31]} 16. Be2 {[%emt 0:01:20]} Re8 {[%emt 0:00:42]} 17. Qg3 {[%emt 0:06:35]} Nxe4 {[%emt 0:03:04]} 18. Nxe4 {[%emt 0:00:53]} Rxe4 {[%emt 0:00:28]} 19. Kf1 {[%emt 0:01:42]} Qe7 {[%emt 0:10:58]} 20. Bf3 {[%emt 0:04:19]} Re6 {[%emt 0:00:07]} 21. Bxb7 {[%emt 0:25:58]} Qxb7 {[%emt 0:00:05]} 22. Qc3+ {[%emt 0:00:28]} f6 {[%emt 0:03:52]} 23. Re1 {[%emt 0:01:54]} Rae8 {[%emt 0:02:05]} 24. Rxe6 {[%emt 0:24:28]} Rxe6 {[%emt 0:00:04]} 25. h4 {[%emt 0:04:25]} h5 {[%emt 0:06:55]} 26. Rh3 {[%emt 0:01:06]} Re4 {[%emt 0:07:20]} 27. Rf3 {[%emt 0:04:23]} Qc6 {[%emt 0:03:10]} 28. g3 {[%emt 0:05:09]} Qe6 {[%emt 0:00:28]} 29. Kg2 {[%emt 0:00:31]} Re2 {[%emt 0:00:52]} 30. b3 {[%emt 0:01:30]} Re4 {[%emt 0:01:51]} 31. Qd2 {[%emt 0:02:23]} Qe7 {[%emt 0:03:23]} 32. bxc4 {[%emt 0:01:54]} Rxc4 {[%emt 0:00:08]} 33. Rd3 {[%emt 0:00:44]} Rc7 {[%emt 0:00:28]} 34. Re3 {[%emt 0:00:33]} Qf8 {[%emt 0:04:34]} 35. Rd3 {[%emt 0:00:50]} Qc8 {[%emt 0:01:40]} 36. c3 {[%emt 0:00:09]} Qf5 {[%emt 0:02:05]} 37. Rf3 {[%emt 0:05:18]} Qe4 {[%emt 0:00:40]} 38. Qd6 {[%emt 0:00:44]} Rf7 {[%emt 0:00:14]} 39. Qd3 {[%emt 0:02:16]} Qc6 {[%emt 0:06:09]} 40. Qe3 {[%emt 0:02:09]} Qd6 {[%emt 0:01:57]} 41. Qc1 {[%emt 0:02:48]} Qd5 {[%emt 0:04:49]} 42. Qe3 {[%emt 0:03:36]} g5 {[%emt 0:04:21]} 43. Qd4 {[%emt 0:03:24]} Qxd4 {[%emt 0:01:41]} 44. cxd4 {[%emt 0:00:05]} Rd7 {[%emt 0:02:24]} 45. Rd3 {[%emt 0:02:43]} Kg6 {[%emt 0:01:53]} 46. Kf1 {[%emt 0:11:46]} Kf5 {[%emt 0:02:55]} 47. Rf3+ {[%emt 0:02:37]} Ke6 {[%emt 0:00:42]} 48. Rd3 {[%emt 0:01:10]} Kd5 {[%emt 0:01:09]} 49. Rf3 {[%emt 0:02:00]} Kxd4 {[%emt 0:02:27]} 50. Rxf6 {[%emt 0:00:10]} gxh4 {[%emt 0:00:07]} 51. Rxa6 {[%emt 0:01:05]} hxg3 {[%emt 0:00:07]} 52. fxg3 {[%emt 0:00:10]} Kc4 {[%emt 0:00:19]} 53. Ra5 {[%emt 0:01:27]} Rd2 {[%emt 0:00:52]} 54. a4 {[%emt 0:03:39]} b4 {[%emt 0:00:05]} 55. Ke1 {[%emt 0:01:02]} Rh2 {[%emt 0:01:25]} 56. Ra8 {[%emt 0:00:22]} b3 {[%emt 0:01:04]} 57. Rb8 {[%emt 0:00:33]} b2 {[%emt 0:00:35]} 58. Kd1 {[%emt 0:00:28]} Kc3 {[%emt 0:00:07]} 59. Rc8+ {[%emt 0:00:43]} Kb3 {[%emt 0:00:05]} 60. Rb8+ {[%emt 0:00:09] -#15} Ka2 {[%emt 0:00:07]} 0-1

[Event "Frauenbundesliga 2024-25"]
[Site "Germany"]
[Date "2025.01.25"]
[Round "3.12"]
[White "Kanakova, Natalie"]
[Black "Werner, Carolin"]
[Result "1/2-1/2"]
[Annotator "TA"]
[ECO "A85"]
[WhiteElo "2163"]
[BlackElo "1971"]
[PlyCount "48"]
[EventDate "2024.11.06"]
[EventType "team-tourn"]
[EventCountry "GER"]
[SourceTitle "playchess.com"]
[Source "ChessBase"]
[SourceQuality "1"]
[WhiteTeam "Rodewischer Schachmiezen"]
[BlackTeam "Bayern Muenchen"]
[TimeControl "40/5400+30:1800+30"]

{[%evp 12,48,33,18,18,25,15,35,60,41,70,58,46,58,74,62,159,0,0,0,0,0,0,-56,-47,-104,-94,-88,0,-129,0,0,0,0,0,0,0,0,0]} 1. Nf3 {[%emt 0:00:04]} f5 {[%emt 0:00:07]} 2. c4 {[%emt 0:00:07]} Nf6 {[%emt 0:00:08]} 3. e3 {[%emt 0:00:26]} g6 {[%emt 0:00:58]} 4. d4 {[%emt 0:00:31]} Bg7 {[%emt 0:00:16]} 5. Nc3 {[%emt 0:00:26]} d6 {[%emt 0:00:16]} 6. Be2 {[%emt 0:00:45]} O-O {[%emt 0:00:30]} 7. b4 {[%emt 0:01:03]} e5 {[%emt 0:09:02] A85: Dutch Defence: 2 c4 Nf6 3 Nc3.} 8. dxe5 {[%emt 0:00:56]} dxe5 {[%emt 0:00:46]} 9. Qb3 {[%emt 0:00:08]} (9. Nxe5 $2 Ne4 10. Bb2 Bxe5 $19) 9... Kh8 {[%emt 0:20:12] White is slightly better.} 10. Bb2 {[%emt 0:14:17]} Qe7 {[%emt 0:10:49]} 11. Nd5 {[%emt 0:20:25]} Nxd5 {[%emt 0:02:07]} 12. cxd5 {[%emt 0:00:04]} c6 $146 {[%emt 0:11:06]} (12... g5 13. O-O Nd7 14. Rfd1 Rd8 15. Rac1 g4 16. Ne1 Nf6 17. Qc4 Ne8 18. e4 f4 {1-0 Chekhov,V (2525)-Djurhuus,R (2410) Peer Gynt Gausdal 1991 (3)}) 13. b5 {[%emt 0:06:01]} c5 {[%emt 0:08:22] [#]} (13... e4 $14) 14. d6 $2 {[%emt 0:09:10] White is more active.} Qxd6 $11 {[%emt 0:04:42]} 15. Ng5 {[%emt 0:00:06] Repels Be6} Qe7 {[%emt 0:03:26] Inhibits Nf7+.} 16. h4 {[%emt 0:00:10]} a6 {[%emt 0:13:29]} 17. bxa6 {[%emt 0:09:57]} (17. b6 $11) 17... Nxa6 $15 {[%emt 0:02:26]} 18. a4 {[%emt 0:07:01] [#]} ({White should play} 18. Rc1 $15) 18... h6 $1 $17 {[%emt 0:01:20]} 19. Bc4 {[%emt 0:02:58] [#]} Nb4 {[%emt 0:01:48]} (19... Bf6 $1 $17 20. Rd1 Nb4) 20. Ke2 {[%emt 0:12:27]} e4 {[%emt 0:04:02]} (20... hxg5 $2 {is the wrong capture.} 21. hxg5+ $18) (20... Bf6 $17 {[%cal Ob4c6]} 21. Rad1 Bd7 (21... hxg5 22. hxg5+ Kg7 23. gxf6+ Rxf6 24. f4 $14) 22. Rxd7 Qxd7 23. Nf7+ Rxf7 24. Bxf7 Qc6 (24... Rxa4 25. Rd1 $17) (24... Qxa4 25. Qxa4 Rxa4 26. Rd1 $11)) 21. Nf7+ $1 $11 {[%emt 0:09:08] The position is equal.} Kh7 {[%emt 0:00:02][%cal Of8f7]} 22. Ng5+ {[%emt 0:00:17]} Kh8 $1 {[%emt 0:00:27][%cal Of5f4]} 23. Nf7+ $1 {[%emt 0:01:23]} Kh7 {[%emt 0:02:47][%cal Of8f7] and ...Rxf7! would now be decisive} 24. Ng5+ {[%emt 0:01:55]} Kh8 $1 {Weighted Error Value: White=0.22 (precise) /Black=0.37  Mistake:       	White=4     	Black=3      Inaccurate:     	---       	Black=1      OK:         	White=9     	Black=5      Best:        	---       	Black=1      Strong:       	White=2     	Black=3} 1/2-1/2

[Event "Frauenbundesliga 2024-25"]
[Site "Germany"]
[Date "2025.01.25"]
[Round "3.12"]
[White "Schuster, Rebekka"]
[Black "Scognamiglio, Stefanie"]
[Result "0-1"]
[Annotator "TA"]
[ECO "B30"]
[WhiteElo "1857"]
[BlackElo "2084"]
[PlyCount "56"]
[EventDate "2024.11.06"]
[EventType "team-tourn"]
[EventCountry "GER"]
[SourceTitle "playchess.com"]
[Source "ChessBase"]
[SourceQuality "1"]
[WhiteTeam "1871 Loeberitz"]
[BlackTeam "Hamburger SK"]
[TimeControl "40/5400+30:1800+30"]

{[%evp 27,56,-35,-33,-50,-40,-81,-9,-107,-96,-104,-93,-119,-116,-231,-227,-485,-485,-659,-647,-645,-631,-1195,-1191,-1435,-1514,-2164,-2114,-2218,-2122,-2383,-2371]} 1. e4 {[%emt 0:00:02]} c5 {[%emt 0:00:04]} 2. Nf3 {[%emt 0:00:05]} Nc6 {[%emt 0:00:06]} 3. c3 {[%emt 0:00:12]} d5 {[%emt 0:00:46]} 4. exd5 {[%emt 0:00:18]} Qxd5 {[%emt 0:00:03]} 5. d4 {[%emt 0:00:25]} cxd4 {[%emt 0:01:57]} 6. cxd4 {[%emt 0:00:44]} e5 {[%emt 0:01:10]} 7. Nc3 {[%emt 0:02:49]} Bb4 {[%emt 0:01:04]} 8. Bd2 {[%emt 0:04:13]} Bxc3 {[%emt 0:01:08]} 9. Bxc3 {[%emt 0:00:22]} e4 {[%emt 0:02:34]} 10. Ne5 {[%emt 0:02:29]} Nxe5 {[%emt 0:01:04]} 11. dxe5 {[%emt 0:00:35]} Ne7 {[%emt 0:03:16]} 12. Qxd5 {[%emt 0:16:40]} Nxd5 {[%emt 0:00:29]} 13. Bb5+ {[%emt 0:00:10]} Bd7 {[%emt 0:02:56]} 14. Bxd7+ {[%emt 0:00:20]} Kxd7 {[%emt 0:00:12]} 15. O-O-O {[%emt 0:01:22] B22: Sicilian: 2 c3.} Ke6 {[%emt 0:00:34]} 16. Bd4 {[%emt 0:00:28] [#]} Nb4 {[%emt 0:05:21]} (16... Nf4 $1 $17 {[%cal Oh8d8] With the idea ...Rhd8!.} 17. Kd2 Nxg2) 17. Kb1 {[%emt 0:18:39]} (17. Kd2 $1 $11 {remains equal.}) 17... Rhd8 $17 {[%emt 0:07:46]} 18. Bc3 {[%emt 0:17:48]} Nd5 {[%emt 0:18:22]} 19. Bd4 {[%emt 0:09:54]} Nf4 {[%emt 0:01:55]} 20. Rd2 $146 {[%emt 0:03:55]} (20. Bc3 $17 {was called for.}) (20. Rhe1 Nd3 21. Rxe4 Nxf2 22. Bxf2 Rxd1+ 23. Kc2 Rd5 24. Bd4 Rc8+ 25. Bc3 h5 26. Rh4 Rxe5 27. a4 g6 28. Kb3 {0-1 Hartikainen,J (2094)-Korol,D (2287) Titled Tuesday intern op 02nd Jan Early blitz 2024 (7)}) 20... Nxg2 $19 {[%emt 0:05:32]} 21. Rg1 $2 {[%emt 0:00:14] [#]} (21. h4) 21... Nh4 $1 {[%emt 0:00:06] Black is clearly winning.} 22. Bc3 {[%emt 0:03:31]} ({But not} 22. Rxg7 Nf3 23. Rc2 Rxd4) 22... Rxd2 {[%emt 0:00:30]} 23. Bxd2 {[%emt 0:00:05][%mdl 4096] Endgame KRB-KRN. Black is a pawn up.} Nf3 {[%emt 0:00:05]} (23... Kxe5 24. Rxg7 Ke6 25. Rg4 $16 (25. Rxh7 Nf5 $16)) 24. Rd1 {[%emt 0:00:08]} Rd8 {[%emt 0:00:12]} 25. Kc2 {[%emt 0:00:09]} Rxd2+ {[%emt 0:00:09]} 26. Rxd2 {[%emt 0:00:11]} Nxd2 {[%emt 0:00:02]} 27. Kxd2 {[%emt 0:00:03]} Kxe5 {[%emt 0:00:07]} 28. Ke3 {[%emt 0:00:44]} g5 {[%emt 0:00:25] Black took control after the opening.   Weighted Error Value: White=1.49/Black=0.09 (flawless)   Mistake:       	White=3     	Black=1      Inaccurate:     	White=2     	---        OK:         	---       	Black=3      Best:        	---       	Black=2      Strong:       	---       	Black=1} 0-1

[Event "Frauenbundesliga 2024-25"]
[Site "Germany"]
[Date "2025.01.25"]
[Round "3.12"]
[White "Kovalskyy, Alicia"]
[Black "Matnadze Bujiashvili, Ann"]
[Result "0-1"]
[Annotator "TA"]
[ECO "B13"]
[WhiteElo "1838"]
[BlackElo "2315"]
[PlyCount "66"]
[EventDate "2024.11.06"]
[EventType "team-tourn"]
[EventCountry "GER"]
[SourceTitle "playchess.com"]
[Source "ChessBase"]
[SourceQuality "1"]
[WhiteTeam "Hemer 1932"]
[BlackTeam "Schwaebisch Hall"]
[TimeControl "40/5400+30:1800+30"]

{[%evp 16,66,27,21,42,56,58,45,45,21,31,-20,-10,-25,-18,-22,-22,-62,0,-65,-69,-94,-88,-101,-100,-100,-93,-110,-97,-194,-150,-164,0,-233,-236,-233,-252,-411,-397,-521,-519,-677,-708,-689,-681,-727,-726,-691,-697,-940,-857,-942,-940]} 1. e4 {[%emt 0:00:01]} c6 {[%emt 0:00:12]} 2. d4 {[%emt 0:00:30]} g6 {[%emt 0:00:10]} 3. Nf3 {[%emt 0:00:40]} d5 {[%emt 0:00:06]} 4. exd5 {[%emt 0:00:57]} cxd5 {[%emt 0:00:04]} 5. Bd3 {[%emt 0:00:44]} Nc6 {[%emt 0:00:08]} 6. c3 {[%emt 0:00:07]} Bg7 {[%emt 0:00:04]} 7. Bf4 {[%emt 0:01:43]} Nf6 {[%emt 0:00:09][%cal Bg8f6,Bf6e8,Be8d6,Bd6f7][%mdl 32]} 8. O-O {[%emt 0:04:01]} O-O {[%emt 0:00:07]} 9. h3 {[%emt 0:01:59] 9.Re1 is setting a new trend.} Ne8 {[%emt 0:00:58] B13: Caro-Kann: Exchange Variation and Panov-Botvinnik Attack.} 10. Nbd2 {[%emt 0:04:59]} Nd6 {[%emt 0:00:12]} 11. Re1 {[%emt 0:01:26]} f6 {[%emt 0:00:11] White is slightly better.} 12. Nf1 $146 {[%emt 0:06:31]} (12. Bh2 e6 13. c4 dxc4 14. Bxc4 Nxc4 15. Nxc4 Qd5 16. Ne3 Qb5 17. a4 Qb4 18. d5 {1-0 Shyam,S (2535)-Nihal,S (2454) Voronezh op-A 21st 2017 (5)}) 12... Nf7 {[%emt 0:00:14]} 13. Bh2 {[%emt 0:02:18]} (13. c4 $14) 13... e5 $11 {[%emt 0:01:01]} 14. Bc2 {[%emt 0:02:59]} e4 {[%emt 0:01:23]} 15. N3d2 {[%emt 0:00:22]} f5 {[%emt 0:01:02]} 16. Bb3 {[%emt 0:09:56]} Be6 {[%emt 0:02:37]} (16... Na5 $15) 17. Ba4 {[%emt 0:10:15]} (17. f3 $11) 17... Rc8 $15 {[%emt 0:11:35]} 18. Nb3 {[%emt 0:01:41]} b6 {[%emt 0:00:27] Prevents Nc5.} 19. Bb5 {[%emt 0:01:28]} Nd6 {[%emt 0:00:57]} 20. Ba6 {[%emt 0:00:55]} Rc7 {[%emt 0:00:10]} 21. f3 {[%emt 0:05:00]} Rcf7 {[%emt 0:01:43]} 22. Nc1 {[%emt 0:18:12]} (22. f4 $17) 22... Nb8 {[%emt 0:03:44]} 23. Bd3 {[%emt 0:05:39]} Nc6 $2 {[%emt 0:12:47]} (23... Bh6 $19 {White must now prevent ...f4.} 24. Bb1 Qd7) 24. Bb1 $2 {[%emt 0:02:58]} (24. Ba6 $1 $11 {and White is okay.}) 24... Nc4 {[%emt 0:01:52]} 25. b3 {[%emt 0:05:34]} Na3 {[%emt 0:01:00] [#]} 26. Nd3 $2 {[%emt 0:01:57]} (26. Ne2) 26... Nb5 $19 {[%emt 0:01:55]} ({Less strong is} 26... Nxd4 27. Nf4 g5 28. cxd4 $19) 27. Nf4 {[%emt 0:02:21]} Bc8 {[%emt 0:02:27] Black is clearly winning.} 28. Ne2 {[%emt 0:00:56] [#]} Nxc3 $1 {[%emt 0:05:14][%mdl 512]} 29. Nxc3 {[%emt 0:02:21]} Bxd4+ {[%emt 0:00:06]} 30. Kh1 {[%emt 0:00:03]} Bxc3 {[%emt 0:00:06]} 31. Bc2 {[%emt 0:00:58]} Nb4 {[%emt 0:03:22]} 32. Qe2 {[%emt 0:01:21]} Ba6 {[%emt 0:01:08]} 33. Qf2 {[%emt 0:00:34]} Bd3 {[%emt 0:00:50] Weighted Error Value: White=0.59/Black=0.14 (very precise)   Loses game:     	White=1     	---        Missed win:     	---       	Black=1      Mistake:       	White=4     	Black=1      Inaccurate:     	White=3     	---        OK:         	White=5     	Black=9      Best:        	---       	Black=2} 0-1

[Event "Frauenbundesliga 2024-25"]
[Site "Germany"]
[Date "2025.01.26"]
[Round "4.1"]
[White "Maltsevskaya, Aleksandra"]
[Black "Butenandt, Svenja"]
[Result "1-0"]
[Annotator "TA"]
[ECO "B12"]
[WhiteElo "2368"]
[BlackElo "2158"]
[PlyCount "67"]
[EventDate "2024.11.06"]
[EventType "team-tourn"]
[EventCountry "GER"]
[SourceTitle "playchess.com"]
[Source "ChessBase"]
[SourceQuality "1"]
[TimeControl "40/5400+30:1800+30"]

{[%evp 9,67,8,20,12,18,5,29,32,31,35,28,33,36,35,23,23,29,31,40,27,51,16,76,57,74,74,81,42,41,37,41,53,82,-13,-10,-18,36,28,29,-16,0,0,0,-25,0,0,0,0,0,0,18,36,511,512,29987,29988,29995,29991,29991,29992]} 1. e4 {[%emt 0:00:03]} c6 {[%emt 0:00:03]} 2. d4 {[%emt 0:00:07]} d5 {[%emt 0:00:05]} 3. e5 {[%emt 0:00:04]} Bf5 {[%emt 0:00:04]} 4. Nd2 {[%emt 0:00:06]} e6 {[%emt 0:01:11]} 5. Nb3 {[%emt 0:00:06]} a6 {[%emt 0:01:41]} 6. Be2 {[%emt 0:00:07] B12: Caro-Kann: Advance Variation.} c5 {[%emt 0:01:01]} 7. dxc5 {[%emt 0:00:15]} Bxc5 {[%emt 0:00:13]} 8. Nxc5 {[%emt 0:00:04] White has an edge.} Qa5+ {[%emt 0:00:04]} 9. c3 {[%emt 0:00:06]} Qxc5 {[%emt 0:00:03]} 10. Be3 {[%emt 0:00:03]} Qc7 {[%emt 0:03:25][%cal Ob8c6]} 11. f4 {[%emt 0:00:21] Black is weak on the dark squares} Ne7 {[%emt 0:08:52]} 12. Nf3 {[%emt 0:00:05]} Nbc6 $146 {[%emt 0:09:00]} (12... Nd7 13. O-O O-O 14. Qd2 Be4 15. Rac1 b5 16. Nd4 Nf5 17. Bf2 Rac8 18. b3 Qa5 19. Nxf5 Bxf5 {1-0 Bosnjak,P (2308)-Vazquez,G (2527) KCF University Cup rapid 2021 (4)}) 13. O-O {[%emt 0:01:44]} O-O {[%emt 0:02:36]} 14. Qe1 {[%emt 0:03:20]} Bg4 {[%emt 0:11:41]} 15. Qf2 {[%emt 0:02:23]} b5 {[%emt 0:06:00]} (15... f6 $11 {keeps the balance.}) 16. Bc5 {[%emt 0:07:49]} Rfc8 {[%emt 0:05:32]} 17. b4 {[%emt 0:00:21][%csl Oc5] Strong Square White (c5)} Ng6 {[%emt 0:08:06]} 18. Nd4 {[%emt 0:03:02]} Bxe2 {[%emt 0:01:57]} 19. Qxe2 {[%emt 0:00:06]} Nf8 {[%emt 0:09:18]} 20. f5 {[%emt 0:05:16]} Qxe5 {[%emt 0:04:16] [#]} 21. Qg4 {[%emt 0:01:08] White has more active pieces.} (21. Qd2 $1 $16 {Strongly threatening Bxf8.} Nxd4 22. Bxd4) 21... Qe3+ $11 {[%emt 0:08:43]} 22. Kh1 {[%emt 0:00:14]} Ne5 {[%emt 0:00:48]} (22... Nxd4 $11 23. Bxd4 Qh6) 23. Qh5 $40 {[%emt 0:02:01][%mdl 128] White is up to no good.} Qh6 {[%emt 0:03:09]} 24. Qe2 {[%emt 0:13:49]} (24. Qxh6 {simplifies} gxh6 25. Bxf8 Rxf8 26. fxe6 fxe6 27. Nxe6 Rxf1+ 28. Rxf1 Rc8 29. Kg1) 24... Ned7 {[%emt 0:01:20]} (24... Nfd7 $5) 25. fxe6 {[%emt 0:02:09]} fxe6 {[%emt 0:02:43]} 26. Rf3 {[%emt 0:06:13]} Nxc5 {[%emt 0:01:39]} 27. bxc5 {[%emt 0:00:05]} Rxc5 {[%emt 0:00:29] And now ...Rac8 would win.} 28. Raf1 {[%emt 0:00:05][%cal Of3f8]} Rcc8 {[%emt 0:02:47][%cal Bc5c8,Bc8e8,Be8f8][%mdl 32]} 29. Qe5 {[%emt 0:01:01]} Re8 {[%emt 0:03:14]} 30. Qc7 {[%emt 0:01:45] White wants to mate with Qf7+.} g6 $2 {[%emt 0:01:39][%mdl 8192] [#] A mistake that costs the game.} (30... Qh5 $1 $14) 31. Nc6 $1 $18 {[%emt 0:00:06]} Qg7 {[%emt 0:02:14]} (31... g5 $18 32. Ne5 Rac8 33. Qf7+ Kh8 34. Qxe8 Rxe8) 32. Rf7 {[%emt 0:00:08] White mates.} Qxc3 {[%emt 0:00:20] [#]} 33. Rxf8+ $1 {[%emt 0:00:06][%mdl 512]} Rxf8 {[%emt 0:00:03]} 34. Ne7+ {[%emt 0:00:05] Weighted Error Value: White=0.12 (very precise) /Black=0.44  Loses game:     	---       	Black=1      Mistake:       	White=1     	Black=3      Inaccurate:     	White=3     	---        OK:         	White=10    	Black=10     Best:        	White=4     	Black=2      Strong:       	White=1     	---} 1-0